[Event "23rd Hoogeveen Open 2019"]
[Site "Hoogeveen"]
[Date "2019.10.24"]
[Round "7.33"]
[White "Boersma, Jan"]
[Black "Shakhverdian, William"]
[Result "1/2-1/2"]
[ECO "C48"]
[WhiteElo "2070"]
[BlackElo "2109"]
[Annotator "NA"]
[PlyCount "103"]
[EventDate "2019.10.19"]
[EventType "swiss"]
[EventCountry "NED"]
[SourceTitle "playchess.com"]
[Source "ChessBase"]
[SourceQuality "1"]
[TimeControl "40/5400+30:1800+30"]

1. e4 {[%emt 0:00:00]} e5 {[%emt 0:00:00]} 2. Nc3 {[%emt 0:00:00]} Nc6 {[%emt 0:00:05]} 3. Nf3 {[%emt 0:02:10]} Nf6 {[%emt 0:00:07]} 4. Bb5 {[%emt 0:00:05]} Bc5 {[%emt 0:00:06]} 5. O-O {[%emt 0:00:24]} O-O {[%emt 0:00:05]} 6. Nxe5 {[%emt 0:00:11]} Nxe5 {[%emt 0:00:09]} 7. d4 {[%emt 0:00:02]} a6 {[%emt 0:02:40]} 8. Be2 {[%emt 0:07:21]} Bd6 {[%emt 0:00:53]} 9. dxe5 {[%emt 0:01:50]} Bxe5 {[%emt 0:00:08]} 10. Bd3 {[%emt 0:01:05]} Bxc3 {[%emt 0:03:29]} 11. bxc3 {[%emt 0:00:06]} d5 {[%emt 0:00:26]} 12. e5 {[%emt 0:00:40]} Nd7 {[%emt 0:07:17]} 13. f4 {[%emt 0:21:53]} Re8 {[%emt 0:01:15]} 14. Qh5 {[%emt 0:00:49]} g6 {[%emt 0:04:24]} 15. Qh6 {[%emt 0:02:00]} Qe7 {[%emt 0:01:51]} 16. Bd2 {[%emt 0:17:50]} Nc5 {[%emt 0:01:17]} 17. Rae1 {[%emt 0:01:32]} Nxd3 {[%emt 0:00:10]} 18. cxd3 {[%emt 0:00:03]} Bf5 {[%emt 0:00:13]} 19. Rf3 {[%emt 0:00:57]} Qf8 {[%emt 0:00:09]} 20. Qh4 {[%emt 0:00:08]} Qe7 {[%emt 0:01:38]} 21. Qf2 {[%emt 0:00:34]} c5 {[%emt 0:02:24]} 22. h3 {[%emt 0:00:14]} h5 {[%emt 0:00:20]} 23. Rg3 {[%emt 0:03:25]} c4 {[%emt 0:04:39]} 24. dxc4 {[%emt 0:00:43]} dxc4 {[%emt 0:00:07]} 25. Be3 {[%emt 0:00:07]} b5 {[%emt 0:02:30]} 26. Bd4 {[%emt 0:18:01]} Qe6 {[%emt 0:00:28]} 27. Qe2 {[%emt 0:02:15]} Rad8 {[%emt 0:03:52]} 28. Qxh5 {[%emt 0:02:36]} Rxd4 {[%emt 0:00:40]} 29. cxd4 {[%emt 0:00:03]} Qd7 {[%emt 0:01:43]} 30. d5 {[%emt 0:00:30]} c3 {[%emt 0:00:34]} 31. Kh2 {[%emt 0:08:00]} c2 {[%emt 0:00:32]} 32. e6 {[%emt 0:05:48]} Qxd5 {[%emt 0:17:30]} 33. exf7+ {[%emt 0:00:43]} Qxf7 {[%emt 0:00:04]} 34. Rxe8+ {[%emt 0:00:06]} Qxe8 {[%emt 0:00:06]} 35. Qxf5 {[%emt 0:00:02]} c1=Q {[%emt 0:00:11]} 36. Rxg6+ {[%emt 0:00:03]} Qxg6 {[%emt 0:00:15]} 37. Qxg6+ {[%emt 0:00:04]} Kf8 {[%emt 0:00:08]} 38. Qd6+ {[%emt 0:00:37]} Kf7 {[%emt 0:00:05]} 39. f5 {[%emt 0:01:18]} Qc4 {[%emt 0:01:26]} 40. Qg6+ {[%emt 0:00:52]} Kf8 {[%emt 0:00:08]} 41. Qf6+ {[%emt 0:33:46]} Ke8 {[%emt 0:30:50]} 42. h4 {[%emt 0:00:00]} Qxa2 {[%emt 0:00:00]} 43. h5 {[%emt 0:00:00]} Qg8 {[%emt 0:00:00]} 44. Qxa6 {[%emt 0:00:00]} Qc4 {[%emt 0:00:00]} 45. Qg6+ {[%emt 0:00:00]} Kd7 {[%emt 0:00:00]} 46. Qg7+ {[%emt 0:00:00]} Ke8 {[%emt 0:00:00]} 47. Qe5+ {[%emt 0:00:00]} Kf7 {[%emt 0:00:00]} 48. g3 {[%emt 0:00:00]} Qc6 {[%emt 0:00:00]} 49. g4 {[%emt 0:00:00]} b4 {[%emt 0:00:00]} 50. Qb8 {[%emt 0:00:00]} Qc2+ {[%emt 0:00:00]} 51. Kh3 {[%emt 0:00:00]} Qc3+ {[%emt 0:00:00]} 52. Kh4 {[%emt 0:00:00]} 1/2-1/2

[Event "23rd Hoogeveen Open 2019"]
[Site "Hoogeveen"]
[Date "2019.10.24"]
[Round "7.34"]
[White "Merkon, Oseb"]
[Black "Stavast, Dick"]
[Result "0-1"]
[ECO "A21"]
[WhiteElo "1930"]
[BlackElo "2068"]
[Annotator "NA"]
[PlyCount "46"]
[EventDate "2019.10.19"]
[EventType "swiss"]
[EventCountry "NED"]
[SourceTitle "playchess.com"]
[Source "ChessBase"]
[SourceQuality "1"]
[TimeControl "40/5400+30:1800+30"]

1. c4 {[%emt 0:00:00]} d6 {[%emt 0:00:00]} 2. Nc3 {[%emt 0:00:00]} e5 {[%emt 0:00:00]} 3. g3 {[%emt 0:00:00]} f5 {[%emt 0:01:03]} 4. Bg2 {[%emt 0:00:00]} Nf6 {[%emt 0:00:15]} 5. d4 {[%emt 0:06:01]} Be7 {[%emt 0:00:30]} 6. dxe5 {[%emt 0:05:48]} dxe5 {[%emt 0:00:11]} 7. Qxd8+ {[%emt 0:07:47]} Bxd8 {[%emt 0:02:47]} 8. e4 {[%emt 0:05:47]} fxe4 {[%emt 0:06:56]} 9. Nxe4 {[%emt 0:00:55]} Nbd7 {[%emt 0:02:12]} 10. Be3 {[%emt 0:03:06]} Nxe4 {[%emt 0:01:06]} 11. Bxe4 {[%emt 0:00:06]} Nf6 {[%emt 0:00:08]} 12. Bg2 {[%emt 0:05:10]} c6 {[%emt 0:06:15]} 13. Nf3 {[%emt 0:03:03]} e4 {[%emt 0:15:11]} 14. Nd2 {[%emt 0:02:23]} Be6 {[%emt 0:10:06]} 15. Bxe4 {[%emt 0:15:24]} Ba5 {[%emt 0:04:33]} 16. Bd3 {[%emt 0:02:06]} O-O-O {[%emt 0:01:44]} 17. Be2 {[%emt 0:02:12]} Ne4 {[%emt 0:04:11]} 18. Rd1 {[%emt 0:06:01]} Nxd2 {[%emt 0:01:37]} 19. Bxd2 {[%emt 0:00:12]} Rxd2 {[%emt 0:00:12]} 20. Rxd2 {[%emt 0:07:11]} Rd8 {[%emt 0:00:07]} 21. O-O {[%emt 0:03:32]} Rxd2 {[%emt 0:00:26]} 22. Bh5 {[%emt 0:01:28]} Bh3 {[%emt 0:01:48]} 23. Rc1 {[%emt 0:01:51]} Rxb2 {[%emt 0:01:27]} 0-1

[Event "23rd Hoogeveen Open 2019"]
[Site "Hoogeveen"]
[Date "2019.10.24"]
[Round "7.35"]
[White "Mijnster, Niels"]
[Black "Van der Veen, Jan"]
[Result "1-0"]
[ECO "E94"]
[WhiteElo "2145"]
[BlackElo "2043"]
[Annotator "NA"]
[PlyCount "74"]
[EventDate "2019.10.19"]
[EventType "swiss"]
[EventCountry "NED"]
[SourceTitle "playchess.com"]
[Source "ChessBase"]
[SourceQuality "1"]
[TimeControl "40/5400+30:1800+30"]

1. d4 {[%emt 0:00:00]} Nf6 {[%emt 0:02:15]} 2. c4 {[%emt 0:00:00]} d6 {[%emt 0:00:37]} 3. Nf3 {[%emt 0:00:00]} g6 {[%emt 0:00:31]} 4. Nc3 {[%emt 0:00:00]} Bg7 {[%emt 0:00:05]} 5. e4 {[%emt 0:00:20]} O-O {[%emt 0:00:07]} 6. Be2 {[%emt 0:00:02]} e5 {[%emt 0:03:04]} 7. dxe5 {[%emt 0:00:45]} dxe5 {[%emt 0:00:06]} 8. O-O {[%emt 0:02:04]} Nbd7 {[%emt 0:04:40]} 9. Qc2 {[%emt 0:02:15]} c6 {[%emt 0:00:36]} 10. h3 {[%emt 0:00:06]} h6 {[%emt 0:08:39]} 11. Be3 {[%emt 0:01:45]} Nh5 {[%emt 0:02:28]} 12. Rfd1 {[%emt 0:02:55]} Nf4 {[%emt 0:11:35]} 13. Bf1 {[%emt 0:09:16]} Qf6 {[%emt 0:08:03]} 14. g3 {[%emt 0:07:39]} Ne6 {[%emt 0:00:06]} 15. Be2 {[%emt 0:01:11]} Re8 {[%emt 0:02:16]} 16. b4 {[%emt 0:02:19]} a5 {[%emt 0:03:50]} 17. b5 {[%emt 0:09:40]} Ndc5 {[%emt 0:08:31]} 18. bxc6 {[%emt 0:02:37]} bxc6 {[%emt 0:00:37]} 19. Rab1 {[%emt 0:03:45]} Rd8 {[%emt 0:11:22]} 20. Nd5 {[%emt 0:04:56]} cxd5 {[%emt 0:01:34]} 21. cxd5 {[%emt 0:00:02]} Ba6 {[%emt 0:15:04]} 22. dxe6 {[%emt 0:11:17]} Nxe6 {[%emt 0:00:03]} 23. Rxd8+ {[%emt 0:04:59]} Qxd8 {[%emt 0:02:38]} 24. Bb6 {[%emt 0:01:34]} Qd7 {[%emt 0:03:31]} 25. Bxa6 {[%emt 0:07:37]} Rxa6 {[%emt 0:00:01]} 26. Kg2 {[%emt 0:04:00]} Ra8 {[%emt 0:01:17]} 27. Rd1 {[%emt 0:03:44]} Qb7 {[%emt 0:00:43]} 28. Be3 {[%emt 0:02:15]} Rc8 {[%emt 0:04:14]} 29. Qb1 {[%emt 0:00:25]} Qxb1 {[%emt 0:01:29]} 30. Rxb1 {[%emt 0:00:46]} Rc2 {[%emt 0:01:35]} 31. Rb8+ {[%emt 0:01:46]} Kh7 {[%emt 0:00:33]} 32. Rb5 {[%emt 0:00:02]} Rxa2 {[%emt 0:00:10]} 33. Nxe5 {[%emt 0:00:04]} Nc7 {[%emt 0:01:24]} 34. Rc5 {[%emt 0:00:34]} Ne6 {[%emt 0:00:04]} 35. Rd5 {[%emt 0:01:17]} Nc7 {[%emt 0:00:16]} 36. Rc5 {[%emt 0:04:56]} Kg8 {[%emt 0:00:11]} 37. Rc4 Rc2 {[%emt 0:00:03]} 1-0

[Event "23rd Hoogeveen Open 2019"]
[Site "Hoogeveen"]
[Date "2019.10.24"]
[Round "7.36"]
[White "Noordenbos, Daan"]
[Black "Klaren, Duncan"]
[Result "1/2-1/2"]
[ECO "B94"]
[WhiteElo "2133"]
[BlackElo "1923"]
[Annotator "NA"]
[PlyCount "47"]
[EventDate "2019.10.19"]
[EventType "swiss"]
[EventCountry "NED"]
[SourceTitle "playchess.com"]
[Source "ChessBase"]
[SourceQuality "1"]
[TimeControl "40/5400+30:1800+30"]

1. e4 {[%emt 0:00:00]} c5 {[%emt 0:00:00]} 2. Nf3 {[%emt 0:00:00]} d6 {[%emt 0:00:00]} 3. d4 {[%emt 0:00:00]} cxd4 {[%emt 0:00:00]} 4. Nxd4 {[%emt 0:00:00]} Nf6 {[%emt 0:00:00]} 5. Nc3 {[%emt 0:00:04]} a6 {[%emt 0:00:00]} 6. Bg5 {[%emt 0:00:07]} Nbd7 {[%emt 0:00:03]} 7. Qf3 {[%emt 0:00:08]} Qa5 {[%emt 0:01:33]} 8. h4 {[%emt 0:00:25]} e6 {[%emt 0:01:55]} 9. O-O-O {[%emt 0:04:16]} Be7 {[%emt 0:03:11]} 10. Be2 {[%emt 0:03:30]} Qc7 {[%emt 0:00:52]} 11. g4 {[%emt 0:12:12]} b5 {[%emt 0:03:07]} 12. Qg2 {[%emt 0:03:44]} b4 {[%emt 0:01:31]} 13. Na4 {[%emt 0:01:44]} Bb7 {[%emt 0:02:56]} 14. f3 {[%emt 0:01:34]} Rc8 {[%emt 0:01:58]} 15. Bf1 {[%emt 0:02:20]} Qa5 {[%emt 0:03:41]} 16. b3 {[%emt 0:00:56]} Nc5 {[%emt 0:03:34]} 17. Kb1 {[%emt 0:02:59]} Nfxe4 {[%emt 0:17:46]} 18. fxe4 {[%emt 0:00:44]} Bxe4 {[%emt 0:00:41]} 19. Qh2 {[%emt 0:00:33]} Nxa4 {[%emt 0:00:41]} 20. bxa4 {[%emt 0:00:05]} Bxg5 {[%emt 0:03:35]} 21. hxg5 {[%emt 0:00:15]} e5 {[%emt 0:01:11]} 22. Bg2 {[%emt 0:08:03]} Bxg2 {[%emt 0:01:27]} 23. Qxg2 {[%emt 0:00:14]} exd4 {[%emt 0:00:11]} 24. g6 {[%emt 0:08:58]} 1/2-1/2

[Event "23rd Hoogeveen Open 2019"]
[Site "Hoogeveen"]
[Date "2019.10.24"]
[Round "7.37"]
[White "Labruyere, Roger"]
[Black "Fehr, Axel"]
[Result "0-1"]
[ECO "B91"]
[WhiteElo "1932"]
[BlackElo "2045"]
[Annotator "NA"]
[PlyCount "66"]
[EventDate "2019.10.19"]
[EventType "swiss"]
[EventCountry "NED"]
[SourceTitle "playchess.com"]
[Source "ChessBase"]
[SourceQuality "1"]
[TimeControl "40/5400+30:1800+30"]

1. e4 {[%emt 0:00:00]} c5 {[%emt 0:00:00]} 2. Nf3 {[%emt 0:00:00]} d6 {[%emt 0:00:00]} 3. d4 {[%emt 0:00:00]} cxd4 {[%emt 0:00:00]} 4. Nxd4 {[%emt 0:00:01]} Nf6 {[%emt 0:00:00]} 5. Nc3 {[%emt 0:00:05]} a6 {[%emt 0:00:00]} 6. g3 {[%emt 0:00:12]} e5 {[%emt 0:00:53]} 7. Nb3 {[%emt 0:00:03]} Be7 {[%emt 0:01:43]} 8. Bg2 {[%emt 0:00:12]} Nbd7 {[%emt 0:06:06]} 9. a4 {[%emt 0:00:14]} O-O {[%emt 0:01:40]} 10. a5 {[%emt 0:00:42]} Qc7 {[%emt 0:01:11]} 11. O-O {[%emt 0:00:33]} b5 {[%emt 0:01:09]} 12. axb6 {[%emt 0:00:07]} Nxb6 {[%emt 0:00:06]} 13. Bg5 {[%emt 0:01:42]} Bg4 {[%emt 0:04:10]} 14. Qd3 {[%emt 0:02:42]} Be6 {[%emt 0:06:21]} 15. Nd2 {[%emt 0:02:49]} Nc4 {[%emt 0:19:34]} 16. Rfb1 {[%emt 0:19:45]} Rfc8 {[%emt 0:03:46]} 17. Nxc4 {[%emt 0:03:34]} Bxc4 {[%emt 0:00:46]} 18. Qd2 {[%emt 0:00:04]} h6 {[%emt 0:05:47]} 19. Bxf6 {[%emt 0:01:56]} Bxf6 {[%emt 0:00:09]} 20. Rd1 {[%emt 0:00:09]} Rab8 {[%emt 0:06:13]} 21. Bh3 {[%emt 0:07:07]} Rd8 {[%emt 0:04:32]} 22. b3 {[%emt 0:02:56]} Be6 {[%emt 0:00:45]} 23. Bxe6 {[%emt 0:04:53]} fxe6 {[%emt 0:00:09]} 24. Rxa6 {[%emt 0:08:37]} Rdc8 {[%emt 0:08:59]} 25. Na4 {[%emt 0:00:43]} Qxc2 {[%emt 0:01:19]} 26. Qxd6 {[%emt 0:07:57]} Qxb3 {[%emt 0:00:41]} 27. Nc5 {[%emt 0:02:59]} Rxc5 {[%emt 0:00:17]} 28. Rda1 {[%emt 0:02:26]} Rcb5 {[%emt 0:06:30]} 29. R6a3 {[%emt 0:11:33]} Qc4 {[%emt 0:02:39]} 30. Ra4 {[%emt 0:00:40]} Rb1+ {[%emt 0:01:29]} 31. Kg2 {[%emt 0:01:38]} Qf1+ {[%emt 0:02:30]} 32. Kf3 {[%emt 0:00:05]} R1b3+ {[%emt 0:02:46]} 33. Kg4 {[%emt 0:00:44]} h5+ {[%emt 0:00:07]} 0-1

[Event "23rd Hoogeveen Open 2019"]
[Site "Hoogeveen"]
[Date "2019.10.25"]
[Round "8.2"]
[White "Moksh Amit Doshi"]
[Black "Seul, Georg"]
[Result "1-0"]
[ECO "E27"]
[WhiteElo "2328"]
[BlackElo "2411"]
[Annotator "NA"]
[PlyCount "123"]
[EventDate "2019.10.19"]
[EventType "swiss"]
[EventCountry "NED"]
[SourceTitle "playchess.com"]
[Source "ChessBase"]
[SourceQuality "1"]
[TimeControl "40/5400+30:1800+30"]

1. d4 {[%emt 0:00:14]} Nf6 {[%emt 0:00:00]} 2. c4 {[%emt 0:00:07]} e6 {[%emt 0:00:00]} 3. Nc3 {[%emt 0:00:05]} Bb4 {[%emt 0:00:02]} 4. f3 {[%emt 0:00:08]} O-O {[%emt 0:01:00]} 5. a3 {[%emt 0:00:07]} Bxc3+ {[%emt 0:00:53]} 6. bxc3 {[%emt 0:00:07]} Ne8 {[%emt 0:00:16]} 7. e4 {[%emt 0:00:57]} b6 {[%emt 0:00:18]} 8. Bd3 {[%emt 0:02:02]} Ba6 {[%emt 0:02:37]} 9. Nh3 {[%emt 0:08:23]} Nc6 {[%emt 0:01:38]} 10. e5 {[%emt 0:05:36]} Qh4+ {[%emt 0:15:04]} 11. Nf2 {[%emt 0:06:39]} Na5 {[%emt 0:15:37]} 12. g3 {[%emt 0:10:26]} Qe7 {[%emt 0:07:20]} 13. Qe2 {[%emt 0:02:08]} d5 {[%emt 0:03:18]} 14. cxd5 {[%emt 0:07:34]} Bxd3 {[%emt 0:00:07]} 15. Nxd3 {[%emt 0:00:06]} exd5 {[%emt 0:00:09]} 16. a4 {[%emt 0:01:34]} c5 {[%emt 0:11:30]} 17. O-O {[%emt 0:03:45]} Nb3 {[%emt 0:09:43]} 18. Rb1 {[%emt 0:03:09]} Nxc1 {[%emt 0:00:07]} 19. Rbxc1 {[%emt 0:00:28]} c4 {[%emt 0:10:01]} 20. Nf4 {[%emt 0:03:41]} Nc7 {[%emt 0:00:14]} 21. Rce1 {[%emt 0:01:02]} Qd7 {[%emt 0:02:37]} 22. Nh5 {[%emt 0:01:36]} Qxa4 {[%emt 0:06:59]} 23. f4 {[%emt 0:02:25]} Qd7 {[%emt 0:07:25]} 24. f5 {[%emt 0:01:01]} f6 {[%emt 0:00:05]} 25. Qg4 {[%emt 0:01:40]} Kh8 {[%emt 0:00:05]} 26. e6 {[%emt 0:00:14]} Qe7 {[%emt 0:00:05]} 27. Nf4 {[%emt 0:00:13]} Kg8 {[%emt 0:02:08]} 28. Ng6 {[%emt 0:00:15]} Qd6 {[%emt 0:00:51]} 29. Nxf8 {[%emt 0:00:31]} Rxf8 {[%emt 0:00:11]} 30. Qh5 {[%emt 0:04:19]} Qe7 {[%emt 0:02:05]} 31. Rf4 {[%emt 0:00:43]} Nb5 {[%emt 0:02:08]} 32. Rh4 {[%emt 0:00:30]} h6 {[%emt 0:00:02]} 33. Qf3 {[%emt 0:01:21]} Nc7 {[%emt 0:00:10]} 34. Rf1 {[%emt 0:00:23]} Kh7 {[%emt 0:00:17]} 35. Qg4 {[%emt 0:00:33]} Qe8 {[%emt 0:00:24]} 36. Rf4 {[%emt 0:01:06]} Rg8 {[%emt 0:00:31]} 37. Qh3 {[%emt 0:00:30]} Qe7 {[%emt 0:01:23]} 38. Rh5 {[%emt 0:00:48]} Qa3 {[%emt 0:00:05]} 39. Qg4 {[%emt 0:00:14]} Qc1+ {[%emt 0:00:08]} 40. Kg2 {[%emt 0:00:54]} g5 {[%emt 0:00:52]} 41. fxg6+ {[%emt 0:33:39]} Rxg6 {[%emt 0:02:50]} 42. Qf5 {[%emt 0:00:00]} Qe3 {[%emt 0:10:43]} 43. Rg4 {[%emt 0:00:00]} Qe2+ {[%emt 0:00:52]} 44. Kh3 {[%emt 0:00:00]} Qxg4+ {[%emt 0:00:13]} 45. Qxg4 {[%emt 0:00:00]} Rxg4 {[%emt 0:00:04]} 46. Kxg4 {[%emt 0:00:00]} Kg6 {[%emt 0:00:34]} 47. e7 {[%emt 0:00:00]} Kf7 {[%emt 0:01:11]} 48. Rxh6 {[%emt 0:00:00]} Kxe7 {[%emt 0:03:31]} 49. Rh7+ {[%emt 0:00:00]} Kd6 {[%emt 0:00:05]} 50. Rf7 {[%emt 0:00:00]} Nb5 {[%emt 0:07:10]} 51. Rxf6+ {[%emt 0:00:00]} Ke7 {[%emt 0:00:04]} 52. Rf3 {[%emt 0:00:00]} a5 {[%emt 0:00:13]} 53. h4 {[%emt 0:00:00]} Nd6 {[%emt 0:07:31]} 54. h5 {[%emt 0:00:00]} Nf7 {[%emt 0:00:26]} 55. Kf5 {[%emt 0:00:00]} b5 {[%emt 0:00:09]} 56. Kg6 {[%emt 0:00:00]} Nh8+ {[%emt 0:00:19]} 57. Kg7 {[%emt 0:00:00]} b4 {[%emt 0:00:03]} 58. Kxh8 {[%emt 0:00:00]} b3 {[%emt 0:00:04]} 59. h6 {[%emt 0:00:00]} b2 {[%emt 0:00:11]} 60. Rf1 {[%emt 0:00:00]} a4 {[%emt 0:01:06]} 61. h7 {[%emt 0:00:00]} a3 {[%emt 0:00:08]} 62. Kg8 {[%emt 0:00:00]} 1-0

[Event "23rd Hoogeveen Open 2019"]
[Site "Hoogeveen"]
[Date "2019.10.25"]
[Round "8.3"]
[White "Schoppen, Casper"]
[Black "Morozov, Nichita"]
[Result "1-0"]
[ECO "C41"]
[WhiteElo "2508"]
[BlackElo "2394"]
[Annotator "ChessBase"]
[PlyCount "77"]
[EventDate "2019.10.19"]
[EventType "swiss"]
[EventCountry "NED"]
[SourceTitle "playchess.com"]
[Source "ChessBase"]
[SourceQuality "1"]
[TimeControl "40/5400+30:1800+30"]

1. e4 {[%emt 0:00:00]} d6 {[%emt 0:00:00]} 2. d4 {[%emt 0:00:00]} Nf6 {[%emt 0:00:00]} 3. Nc3 {[%emt 0:00:00]} e5 {[%emt 0:00:00]} 4. Nf3 {[%emt 0:00:00]} Nbd7 {[%emt 0:00:00]} 5. Bc4 {[%emt 0:00:00]} Be7 {[%emt 0:00:00]} 6. O-O {[%emt 0:00:03]} O-O {[%emt 0:00:00]} 7. Re1 {[%emt 0:00:24]} Nb6 {[%emt 0:10:17]} 8. Bf1 {[%emt 0:05:57]} exd4 {[%emt 0:01:28]} 9. Nxd4 {[%emt 0:00:34]} Re8 {[%emt 0:00:21]} 10. a4 {[%emt 0:04:06]} a5 {[%emt 0:00:38]} 11. Bf4 {[%emt 0:00:58]} Nfd7 {[%emt 0:01:30]} 12. Qd2 {[%emt 0:04:10]} Bf6 {[%emt 0:08:33]} 13. Ndb5 {[%emt 0:17:47]} Ne5 {[%emt 0:05:17]} 14. b3 {[%emt 0:04:14]} Be6 {[%emt 0:09:40]} 15. Be3 {[%emt 0:06:12]} Ned7 {[%emt 0:03:22]} 16. Rad1 {[%emt 0:02:41]} Be7 {[%emt 0:07:31]} 17. f4 {[%emt 0:10:08]} Bg4 {[%emt 0:03:20]} 18. Rb1 {[%emt 0:05:20]} Nc5 {[%emt 0:00:44]} 19. h3 {[%emt 0:04:24]} Bd7 {[%emt 0:00:54]} 20. Qf2 {[%emt 0:04:22]} Bxb5 {[%emt 0:11:31]} 21. Bxb5 {[%emt 0:00:49]} c6 {[%emt 0:00:06]} 22. Bxc5 {[%emt 0:03:33]} dxc5 {[%emt 0:00:05]} 23. Red1 {[%emt 0:02:13]} Qc7 {[%emt 0:00:21]} 24. Bd3 {[%emt 0:01:21]} Rad8 {[%emt 0:01:52]} 25. e5 {[%emt 0:02:18]} Nd5 {[%emt 0:03:08]} 26. Ne4 {[%emt 0:04:21]} f6 {[%emt 0:03:42]} 27. c4 {[%emt 0:11:49]} Nb4 {[%emt 0:00:29]} 28. exf6 {[%emt 0:00:28]} gxf6 {[%emt 0:12:42]} 29. Bf1 {[%emt 0:00:25]} b6 {[%emt 0:04:18]} 30. Re1 {[%emt 0:02:34]} Kh8 {[%emt 0:02:25]} 31. Re3 {[%emt 0:00:46]} Qd7 {[%emt 0:02:00]} 32. Rbe1 {[%emt 0:00:58]} Rg8 {[%emt 0:02:13]} 33. Ng3 {[%emt 0:00:53]} Rde8 {[%emt 0:00:35]} 34. Qe2 {[%emt 0:01:26]} Rg7 {[%emt 0:00:35]} 35. Kh2 {[%emt 0:00:28]} Kg8 {[%emt 0:01:05]} 36. Re6 {[%emt 0:00:29]} Qc7 {[%emt 0:00:32]} 37. Nh5 {[%emt 0:00:37]} Rf7 {[%emt 0:00:10]} 38. Nxf6+ {[%emt 0:00:37]} Rxf6 {[%emt 0:00:17]} 39. Rxf6 {[%emt 0:00:05]} 1-0

[Event "23rd Hoogeveen Open 2019"]
[Site "Hoogeveen"]
[Date "2019.10.25"]
[Round "8.4"]
[White "Elgersma, Onno"]
[Black "Beerdsen, Thomas"]
[Result "0-1"]
[ECO "B48"]
[WhiteElo "2306"]
[BlackElo "2472"]
[Annotator "ChessBase"]
[PlyCount "54"]
[EventDate "2019.10.19"]
[EventType "swiss"]
[EventCountry "NED"]
[SourceTitle "playchess.com"]
[Source "ChessBase"]
[SourceQuality "1"]
[TimeControl "40/5400+30:1800+30"]

1. e4 {[%emt 0:00:00]} c5 {[%emt 0:00:00]} 2. Nf3 {[%emt 0:00:00]} e6 {[%emt 0:00:00]} 3. d4 {[%emt 0:00:00]} cxd4 {[%emt 0:00:00]} 4. Nxd4 {[%emt 0:00:00]} Nc6 {[%emt 0:00:00]} 5. Nc3 {[%emt 0:00:00]} Qc7 {[%emt 0:00:00]} 6. Be3 {[%emt 0:00:00]} a6 {[%emt 0:00:00]} 7. Qd2 {[%emt 0:00:00]} Nf6 {[%emt 0:00:02]} 8. f4 {[%emt 0:00:01]} Bb4 {[%emt 0:00:05]} 9. Bd3 {[%emt 0:00:05]} b5 {[%emt 0:00:03]} 10. a3 {[%emt 0:00:30]} Be7 {[%emt 0:00:06]} 11. e5 {[%emt 0:02:33]} Ng4 {[%emt 0:01:07]} 12. Bg1 {[%emt 0:09:03]} Bb7 {[%emt 0:16:22]} 13. Ne4 {[%emt 0:08:53]} f5 {[%emt 0:04:39]} 14. exf6 {[%emt 0:13:28]} Nxf6 {[%emt 0:01:19]} 15. Ng5 {[%emt 0:07:22]} O-O {[%emt 0:02:11]} 16. O-O-O {[%emt 0:04:56]} b4 {[%emt 0:08:14]} 17. a4 {[%emt 0:10:29]} h6 {[%emt 0:06:18]} 18. h4 {[%emt 0:12:26]} hxg5 {[%emt 0:08:40]} 19. hxg5 {[%emt 0:01:50]} Nxd4 {[%emt 0:00:45]} 20. Bxd4 {[%emt 0:01:28]} Ne4 {[%emt 0:00:06]} 21. Bxe4 {[%emt 0:01:10]} Bxe4 {[%emt 0:00:06]} 22. Bxg7 {[%emt 0:05:59]} Rxf4 {[%emt 0:06:44]} 23. Bd4 {[%emt 0:03:47]} e5 {[%emt 0:01:06]} 24. g3 {[%emt 0:01:41]} Rg4 {[%emt 0:01:25]} 25. Rh4 {[%emt 0:03:02]} Rxh4 {[%emt 0:00:25]} 26. gxh4 {[%emt 0:00:11]} exd4 {[%emt 0:00:06]} 27. Re1 {[%emt 0:00:15]} d5 {[%emt 0:00:13]} 0-1

[Event "23rd Hoogeveen Open 2019"]
[Site "Hoogeveen"]
[Date "2019.10.25"]
[Round "8.5"]
[White "Hilwerda, Jonas"]
[Black "Akash, Ganesan"]
[Result "0-1"]
[ECO "B56"]
[WhiteElo "2229"]
[BlackElo "2449"]
[Annotator "NA"]
[PlyCount "104"]
[EventDate "2019.10.19"]
[EventType "swiss"]
[EventCountry "NED"]
[SourceTitle "playchess.com"]
[Source "ChessBase"]
[SourceQuality "1"]
[TimeControl "40/5400+30:1800+30"]

1. e4 {[%emt 0:00:00]} c5 {[%emt 0:00:00]} 2. Nf3 {[%emt 0:00:00]} d6 {[%emt 0:00:00]} 3. d4 {[%emt 0:00:00]} cxd4 {[%emt 0:00:00]} 4. Nxd4 {[%emt 0:00:00]} Nf6 {[%emt 0:00:00]} 5. Nc3 {[%emt 0:00:00]} Nc6 {[%emt 0:00:00]} 6. Nd5 {[%emt 0:00:00]} Nxd5 {[%emt 0:07:39]} 7. exd5 {[%emt 0:00:03]} Qa5+ {[%emt 0:01:07]} 8. Bd2 {[%emt 0:00:05]} Qxd5 {[%emt 0:00:38]} 9. Nb5 {[%emt 0:00:05]} Qe6+ {[%emt 0:08:39]} 10. Be2 {[%emt 0:00:07]} Qd7 {[%emt 0:00:10]} 11. c4 {[%emt 0:00:07]} a6 {[%emt 0:02:36]} 12. Nc3 {[%emt 0:00:27]} e6 {[%emt 0:02:55]} 13. Bf4 {[%emt 0:00:30]} Be7 {[%emt 0:01:39]} 14. Qd2 {[%emt 0:01:03]} O-O {[%emt 0:03:49]} 15. Rd1 {[%emt 0:02:53]} Rd8 {[%emt 0:05:58]} 16. O-O {[%emt 0:01:06]} b5 {[%emt 0:10:38]} 17. cxb5 {[%emt 0:03:57]} axb5 {[%emt 0:00:18]} 18. Bxb5 {[%emt 0:00:01]} Ba6 {[%emt 0:02:04]} 19. Qe2 {[%emt 0:14:33]} Bxb5 {[%emt 0:03:46]} 20. Qxb5 {[%emt 0:00:15]} Rdb8 {[%emt 0:07:04]} 21. Qe2 {[%emt 0:05:32]} Rb4 {[%emt 0:00:35]} 22. Bxd6 {[%emt 0:16:01]} Bxd6 {[%emt 0:01:39]} 23. Nb5 {[%emt 0:00:08]} Bxh2+ {[%emt 0:07:10]} 24. Kxh2 {[%emt 0:00:50]} Qb7 {[%emt 0:00:27]} 25. Nc3 {[%emt 0:07:06]} Rxb2 {[%emt 0:01:38]} 26. Qe4 {[%emt 0:01:22]} Rb4 {[%emt 0:02:17]} 27. Qf3 {[%emt 0:02:26]} Ne5 {[%emt 0:02:37]} 28. Qxb7 {[%emt 0:01:50]} Rxb7 {[%emt 0:01:19]} 29. Rb1 {[%emt 0:00:19]} Rc7 {[%emt 0:05:34]} 30. Rb3 {[%emt 0:03:31]} h5 {[%emt 0:01:35]} 31. a4 {[%emt 0:04:13]} Rc4 {[%emt 0:01:55]} 32. Ra1 {[%emt 0:00:00]} Nc6 {[%emt 0:00:26]} 33. Rab1 {[%emt 0:03:34]} Kh7 {[%emt 0:04:04]} 34. Ra3 {[%emt 0:00:38]} g5 {[%emt 0:02:18]} 35. Rb5 {[%emt 0:01:52]} Kg6 {[%emt 0:00:10]} 36. f3 {[%emt 0:00:44]} f5 {[%emt 0:02:02]} 37. Kg3 {[%emt 0:00:39]} Nd4 {[%emt 0:02:41]} 38. Rb2 {[%emt 0:00:01]} h4+ {[%emt 0:00:35]} 39. Kh2 {[%emt 0:02:37]} Ra5 {[%emt 0:05:58]} 40. Rb6 {[%emt 0:02:29]} Kf6 {[%emt 0:00:00]} 41. Kh3 {[%emt 0:31:58]} Rac5 {[%emt 0:14:14]} 42. Nd1 {[%emt 0:00:00]} g4+ {[%emt 0:03:48]} 43. Kxh4 {[%emt 0:00:00]} gxf3 {[%emt 0:02:52]} 44. Kh3 {[%emt 0:00:00]} Rc1 {[%emt 0:04:54]} 45. Ne3 {[%emt 0:00:00]} f2 {[%emt 0:00:40]} 46. Kg3 {[%emt 0:00:00]} f1=Q {[%emt 0:00:41]} 47. Nxf1 {[%emt 0:00:00]} Rxf1 {[%emt 0:00:04]} 48. a5 {[%emt 0:00:00]} f4+ {[%emt 0:00:26]} 49. Kh2 {[%emt 0:00:00]} Rh5+ {[%emt 0:01:03]} 50. Rh3 {[%emt 0:00:00]} Rxh3+ {[%emt 0:00:07]} 51. Kxh3 {[%emt 0:00:04]} Kf5 {[%emt 0:00:09]} 52. Kh2 {[%emt 0:00:08]} Ne2 {[%emt 0:00:10]} 0-1